bitfinex-derivatives/quotes_SOLF0:USTF0_20251228
["timestamp","ask_amount","ask_price","bid_price","bid_amount"]
[1766945589238,0.06074918,124.19,124.15,3.35225812]
[1766945592929,2.22,124.23,124.16,3.3]
[1766945594038,0.05945322,124.21,124.18,0.05842494]
[1766945595140,0.05945322,124.21,124.18,3.37842494]
[1766945606845,3.30945322,124.21,124.13,7.2549]
[1766945607039,3.25,124.21,124.13,7.2549]
[1766945607541,7.2515,124.2,124.13,7.2549]
[1766945607737,0.05809486,124.18,124.15,0.05249804]
[1766945608741,0.05809486,124.18,124.15,3.37249804]
[1766945621956,4.94417401,124.18,124.11,11.65153069]
[1766945622759,7.2533,124.17,124.11,11.65153069]
[1766945622959,7.2533,124.17,124.13,0.06155102]
[1766945624050,0.05898819,124.16,124.13,3.38155102]
[1766945626965,7.2533,124.17,124.13,3.38155102]
[1766945626966,3.25,124.18,124.13,5.01763017]
[1766945627457,4.82607915,124.17,124.13,0.06155102]
[1766945627764,3.19,124.16,124.13,0.06155102]
[1766945627967,3.24701785,124.16,124.13,0.06155102]
[1766945628157,4.883097,124.16,124.11,3.45]
[1766945629157,4.883097,124.16,124.12,0.05615591]
[1766945633867,1.63607915,124.15,124.12,0.05615591]
[1766945634069,3.43,124.15,124.12,0.05615591]
[1766945635568,10.6844,124.15,124.12,0.05615591]
[1766945636868,10.6844,124.15,124.09,4.91607915]
[1766945637274,10.6844,124.15,124.1,3.28]
[1766945637673,12.32047915,124.15,124.1,3.28]
[1766945637863,0.05653847,124.14,124.11,0.05506465]
[1766945638070,7.31153847,124.14,124.11,0.05506465]
[1766945638262,7.31153847,124.14,124.1,3.28]
[1766945639175,7.31153847,124.14,124.11,0.05804501]
[1766945640975,3.43,124.12,124.06,1.63607915]
[1766945641969,0.05884723,124.1,124.08,0.05290501]
[1766945642469,3.48884723,124.1,124.08,0.05290501]
[1766945643672,10.74614723,124.1,124.08,0.05290501]
[1766945644376,10.74614723,124.1,124.03,7.2608]
[1766945644377,3.43,124.06,123.97,16.45116396]
[1766945644581,5.06607915,124.03,123.97,6.43571242]
[1766945644871,3.43,124.03,123.97,8.07179157]
[1766945645079,3.43,124.03,123.99,1.63607915]
[1766945645278,5.06607915,124.02,123.97,3.15571242]
[1766945645479,0.05613621,124.01,123.98,0.06041173]
[1766945645976,5.06607915,124.04,123.98,1.69649088]
[1766945646181,3.43,124.06,123.99,3.28]
[1766945646478,3.43,124.05,123.99,4.91607915]
[1766945646680,3.43,124.05,124.0,1.63607915]
[1766945647180,3.43,124.05,123.99,3.28]
[1766945647181,0.05892423,124.04,124.01,0.05458134]
[1766945655487,0.05892423,124.04,124.01,3.39458134]
[1766945656394,3.23,124.07,124.02,1.63607915]
[1766945656595,3.23,124.07,124.02,4.97607915]
[1766945657297,0.0510423,124.06,124.02,4.97607915]
[1766945659094,0.0510423,124.06,124.03,1.63607915]
[1766945660194,0.0510423,124.06,124.02,3.34]
[1766945662392,0.0010423,124.06,124.04,3.34]
[1766945663400,0.0010423,124.06,124.04,3.39329347]
[1766945669498,0.0010423,124.06,124.04,0.05329347]
[1766945672114,0.0010423,124.06,124.04,3.39329347]
[1766945678817,7.258,124.09,124.04,3.39329347]
[1766945679717,0.05180459,124.08,124.04,3.39329347]
[1766945681912,0.00180459,124.08,124.05,3.34]
[1766945683011,0.00180459,124.08,124.05,10.6001]
[1766945683213,0.00180459,124.08,124.06,3.34]
[1766945685724,2.74428237,124.1,124.06,3.34]
[1766945685921,10.4858,124.13,124.06,3.34]
[1766945686514,3.19,124.12,124.06,3.34]
[1766945686714,0.05183702,124.1,124.08,0.05627218]
[1766945690322,0.00183702,124.1,124.08,3.56627218]
[1766945690715,0.00183702,124.1,124.08,0.05627218]
[1766945695928,3.19,124.12,124.08,0.05627218]
[1766945697122,0.05142412,124.11,124.08,0.05627218]
[1766945701127,3.45,124.1,124.06,3.51]
[1766945701328,7.30832412,124.11,124.06,3.51]
[1766945701725,10.75832412,124.11,124.06,3.51]
[1766945702130,10.75832412,124.11,124.07,0.05369358]
[1766945713031,3.45,124.09,124.07,0.00369358]
[1766945727450,3.45,124.09,124.03,10.01545154]
[1766945727654,3.45,124.09,124.02,13.42545154]
[1766945728660,3.53571747,124.07,124.04,0.05664073]
[1766945735760,3.53571747,124.07,124.01,1.63898128]
[1766945736361,3.53571747,124.07,124.01,5.04898128]
[1766945736854,3.53571747,124.07,124.03,0.0570541]
[1766945738666,10.79481747,124.07,124.03,0.0570541]
[1766945738866,3.48,124.06,124.03,0.0570541]
[1766945746167,3.48,124.06,123.99,3.32]
[1766945746358,3.48,124.06,123.97,3.08198795]
[1766945746564,3.48,124.06,123.6,258.02]
[1766945746565,1.63898128,123.84,123.74,39.28573107]
[1766945746765,1.63898128,123.84,123.72,113.2301]
[1766945746766,8.128e-05,123.74,123.71,113.2412]
[1766945746960,8.128e-05,123.74,123.67,113.2762]
[1766945746961,33.98748128,123.74,123.67,113.2762]
[1766945747264,20.90058128,123.74,123.69,0.05735989]
[1766945747470,8.128e-05,123.7,123.62,113.3233]
[1766945747862,134.12328128,123.74,123.61,113.3372]
[1766945748064,7.44485019,123.73,123.61,113.3344]
[1766945748259,1.63898128,123.7,123.59,1.63898128]
[1766945748463,113.2596,123.7,123.58,3.26304455]
[1766945748866,0.06162452,123.65,123.63,0.05666316]
[1766945749172,0.05623481,123.65,123.63,0.05666316]
[1766945749365,113.239,123.72,123.63,3.37666316]
[1766945749567,120.65917541,123.71,123.63,3.32]
[1766945749770,120.66767541,123.7,123.63,3.32]
[1766945750074,130.79239879,123.69,123.6,4.12523041]
[1766945750371,17.52409879,123.68,123.58,113.3608]
[1766945750566,208.579,123.72,123.63,0.05510442]
[1766945750761,215.8586,123.72,123.61,4.12523041]
[1766945751068,113.2588,123.7,123.57,113.3723]
[1766945751372,113.269,123.69,123.57,99.48523041]
[1766945751568,0.05161547,123.64,123.62,0.05255085]
[1766945751869,0.05161547,123.64,123.53,113.41]
[1766945751870,0.05738271,123.64,123.53,113.41]
[1766945752175,113.2721,123.69,123.58,3.31]
[1766945752865,208.6476,123.69,123.58,3.31]
[1766945753067,0.06165062,123.65,123.62,0.05932484]
[1766945755063,0.06165062,123.65,123.58,3.31]
[1766945755064,113.37015062,123.65,123.58,3.31]
[1766945755479,113.314,123.64,123.54,95.38]
[1766945755777,113.2957,123.66,123.55,3.31]
[1766945755966,105.22516441,123.63,123.56,12.40958577]
[1766945756167,0.05681708,123.62,123.59,0.06034117]
[1766945756384,0.05681708,123.62,123.6,8.577e-05]
[1766945756578,113.3787,123.57,123.44,3.31]
[1766945756892,113.3787,123.57,123.42,113.51]
[1766945756893,4.12523041,123.49,123.42,3.31]
[1766945757175,95.48,123.57,123.45,3.31]
[1766945757368,113.3883,123.56,123.45,3.31]
[1766945757686,0.06120695,123.52,123.43,3.31]
[1766945757978,113.4054,123.54,123.44,3.31]
[1766945757979,95.48,123.54,123.44,3.31]
[1766945758277,95.48,123.53,123.45,3.31]
[1766945758570,208.8895,123.54,123.45,3.31]
[1766945758771,0.05156798,123.51,123.48,0.05771105]
[1766945758973,95.48,123.54,123.48,0.05771105]
[1766945759172,113.4068,123.54,123.48,0.05771105]
[1766945759373,4.12523041,123.53,123.48,0.05771105]
[1766945759974,120.6463,123.59,123.48,3.36771105]
[1766945760176,4.12523041,123.57,123.48,3.31]
[1766945760476,113.3738,123.58,123.49,3.31]
[1766945760677,4.12523041,123.57,123.49,3.31]
[1766945760869,4.12523041,123.61,123.5,3.31]
[1766945761073,117.45163041,123.63,123.54,3.36888308]
[1766945761368,113.3135,123.64,123.54,3.31]
[1766945761683,113.3319,123.62,123.54,3.31]
[1766945761970,4.12523041,123.63,123.54,3.31]
[1766945762164,0.0610179,123.6,123.57,0.0618846]
[1766945762684,4.12523041,123.59,123.51,98.85]
[1766945762972,4.12523041,123.57,123.48,3.31]
[1766945763171,4.12523041,123.62,123.51,3.31]
[1766945763372,11.84836158,123.62,123.52,3.31]
[1766945763574,117.45683041,123.62,123.52,3.31]
[1766945763768,117.45683041,123.62,123.56,0.0586715]
[1766945763769,0.05317635,123.58,123.56,0.0586715]
[1766945763970,4.17840676,123.58,123.47,3.31]
[1766945764170,113.3615,123.59,123.48,3.31]
[1766945764479,113.3542,123.6,123.48,3.31]
[1766945764679,4.12523041,123.57,123.48,3.31]
[1766945764886,117.50333041,123.57,123.48,3.31]
[1766945765085,0.06027006,123.54,123.51,0.0539447]
[1766945765581,117.53823041,123.53,123.44,3.31]
[1766945765776,4.12523041,123.54,123.44,3.31]
[1766945765973,113.4367,123.51,123.44,3.31]
[1766945766178,117.56693041,123.5,123.35,113.5688]
[1766945766381,95.58,123.54,123.34,116.893]
[1766945766382,113.4701,123.47,123.34,116.893]
[1766945766579,4.12523041,123.47,123.35,4.12523041]
[1766945766879,102.873,123.5,123.4,3.31]
[1766945767179,95.58,123.5,123.4,3.31]
[1766945767376,4.12523041,123.48,123.4,3.31]
[1766945767577,4.12523041,123.5,123.4,3.31]
[1766945767773,99.72523041,123.53,123.43,3.31]
[1766945768080,10.13141326,123.52,123.41,98.72208509]
[1766945768380,10.13141326,123.51,123.43,113.5007]
[1766945768573,10.13141326,123.5,123.43,95.6]
[1766945768772,4.12523041,123.54,123.43,216.3976]
[1766945768973,216.2864,123.55,123.43,102.8966]
[1766945769174,99.74523041,123.55,123.48,0.05848763]
[1766945769378,209.018,123.55,123.48,0.05848763]
[1766945769582,95.62,123.55,123.48,0.05848763]
[1766945769971,95.62,123.55,123.43,216.3959]
[1766945770179,220.42513041,123.56,123.44,3.31]
[1766945770382,4.12523041,123.54,123.44,3.31]
[1766945770879,220.42513041,123.56,123.44,3.31]
[1766945771071,0.05952049,123.51,123.49,0.05643136]
[1766945771278,4.12523041,123.54,123.49,0.05643136]
[1766945771477,216.3179,123.56,123.49,0.05643136]
[1766945771677,4.12523041,123.55,123.49,0.05643136]
[1766945771876,113.3707,123.58,123.49,0.05643136]
[1766945772083,113.3466,123.61,123.49,3.31]
[1766945772384,0.05556455,123.55,123.52,0.05645825]
[1766945772584,0.0520451,123.55,123.52,0.05202597]
[1766945772784,113.3019,123.66,123.53,3.31]
[1766945772971,208.932,123.67,123.54,113.3992]
[1766945773172,208.932,123.67,123.56,3.31]
[1766945773368,4.12523041,123.65,123.56,3.31]
[1766945773768,120.5793,123.66,123.56,3.31]
[1766945773769,0.05711713,123.62,123.59,0.05544268]
[1766945776180,0.05711713,123.62,123.59,3.27544268]
[1766945776973,0.05711713,123.62,123.59,3.03271932]
[1766945777174,0.05711713,123.62,123.54,213.16543041]
[1766945777375,117.42043041,123.66,123.54,213.16543041]
[1766945777578,117.42043041,123.66,123.54,278.16543041]
[1766945777979,117.42043041,123.66,123.59,0.05394761]
[1766945778177,124.70373041,123.66,123.59,0.05394761]
[1766945778981,0.06000079,123.64,123.59,0.05394761]
[1766945779392,7.285,123.63,123.59,0.05394761]
[1766945779581,0.06000079,123.64,123.55,3.22]
[1766945779880,99.74523041,123.66,123.55,3.22]
[1766945780081,220.32243041,123.66,123.55,3.22]
[1766945780480,0.05199083,123.62,123.59,0.05650461]
[1766945782588,0.05199083,123.62,123.59,3.27650461]
[1766945783387,7.2822,123.68,123.59,3.27650461]
[1766945783687,117.40103041,123.68,123.59,3.22]
[1766945784085,113.2758,123.68,123.59,3.22]
[1766945784284,117.40103041,123.68,123.59,3.22]
[1766945784482,0.05568794,123.65,123.62,0.05880749]
[1766945789496,7.2822,123.68,123.62,3.27880749]
[1766945790201,7.2829,123.67,123.62,0.05880749]
[1766945790492,0.06087059,123.66,123.62,0.05880749]
[1766945791092,7.00966295,123.65,123.62,0.05880749]
[1766945791295,7.03737144,123.64,123.62,0.05880749]
[1766945791493,0.00737144,123.63,123.62,0.05880749]
[1766945792090,7.34427059,123.66,123.62,0.05880749]
[1766945793499,123.77017621,123.65,123.56,3.22]
[1766945793690,6.3418212,123.64,123.56,98.82]
[1766945793893,6.3418212,123.64,123.57,3.22]
[1766945794693,119.6567212,123.64,123.59,0.05273622]
[1766945794899,6.3418212,123.63,123.59,0.05273622]
[1766945795101,7.2857,123.62,123.59,0.05273622]
[1766945795691,7.33891518,123.62,123.59,0.05273622]
[1766945796194,7.33891518,123.62,123.57,3.22]
[1766945796397,0.05321518,123.62,123.57,3.22]
[1766945796601,0.00321518,123.62,123.59,3.22]
[1766945796904,0.00740561,123.66,123.59,3.22]
[1766945797197,113.2689,123.69,123.59,3.22]
[1766945797589,113.2689,123.69,123.63,0.05120201]
[1766945797590,0.05772707,123.65,123.63,0.05120201]
[1766945798004,90.25850376,123.69,123.64,10.11680777]
[1766945798195,105.17095379,123.7,123.65,7.77e-06]
[1766945798393,105.17095379,123.7,123.6,3.22]
[1766945798901,7.2823,123.68,123.6,3.22]
[1766945799105,7.2823,123.68,123.63,0.059427]
[1766945799303,452.9053,123.74,123.63,0.059427]
[1766945799304,113.2318,123.73,123.63,0.059427]
[1766945799494,7.2811,123.7,123.63,98.82]
[1766945800198,0.02610463,123.68,123.65,0.05143665]
[1766945800892,7.2811,123.7,123.65,0.05143665]
[1766945801700,7.2811,123.7,123.65,3.27143665]
[1766945801896,7.2814,123.69,123.65,3.27143665]
[1766945804201,113.2381,123.72,123.65,3.27143665]
[1766945804202,102.19765179,123.72,123.65,3.27143665]
[1766945805390,7.2806,123.71,123.65,3.27143665]
[1766945806800,7.2808,123.7,123.65,3.27143665]
[1766945807003,7.2808,123.7,123.66,0.05594755]
[1766945807504,7.2799,123.72,123.66,0.05594755]
[1766945807708,113.2318,123.73,123.66,0.05594755]
[1766945808212,7.2804,123.71,123.66,0.05594755]
[1766945810308,7.2804,123.71,123.67,7.49012758]
[1766945810503,7.2804,123.71,123.68,2.758e-05]
[1766945810806,7.2804,123.71,123.66,0.05594755]
[1766945811205,3.23465463,123.71,123.66,3.29594755]
[1766945812609,119.92576894,123.74,123.66,3.29594755]
[1766945812811,119.92576894,123.74,123.69,0.05752676]
[1766945813106,7.2803,123.71,123.66,98.8]
[1766945813308,7.2803,123.71,123.63,7.2843]
[1766945813309,7.2803,123.71,123.64,98.8]
[1766945814316,0.0558239,123.69,123.66,0.05805562]
[1766945817207,7.3371239,123.69,123.63,7.46731869]
[1766945817417,7.3371239,123.69,123.62,10.70731869]
[1766945817611,7.2813,123.69,123.62,10.70731869]
[1766945818312,0.06059345,123.67,123.64,0.05852114]
[1766945820516,0.00059345,123.67,123.64,3.29852114]
[1766945820809,0.00059345,123.67,123.62,7.46731869]
[1766945821014,6.70466894,123.68,123.6,7.46731869]
[1766945821608,6.70466894,123.68,123.59,10.70731869]
[1766945821808,0.05844861,123.65,123.62,0.05463136]
[1766945822404,0.05844861,123.65,123.62,0.00463136]
[1766945823419,14.37697234,123.65,123.62,0.00463136]
[1766945824430,7.03482373,123.64,123.62,0.00463136]
[1766945824622,7.03482373,123.63,123.62,0.00463136]
[1766945825814,7.03482373,123.63,123.58,8.99921869]
[1766945826016,7.03482373,123.62,123.58,8.99921869]
[1766945826222,7.41993706,123.63,123.58,8.99921869]
[1766945826425,7.41993706,123.62,123.58,8.99921869]
[1766945826616,7.285,123.63,123.58,1.5319]
[1766945826919,7.70588891,123.62,123.59,0.06180924]
[1766945827119,7.65482724,123.61,123.59,0.06180924]
[1766945827318,0.05106167,123.62,123.59,0.06180924]
[1766945827918,7.65463262,123.61,123.53,7.46731869]
[1766945828219,113.3317,123.62,123.52,10.70731869]
[1766945828817,0.05565415,123.59,123.57,0.05686628]
[1766945829419,0.05565415,123.59,123.52,10.5311]
[1766945830214,0.05565415,123.59,123.52,3.24]
[1766945830419,0.05565415,123.59,123.55,0.0533923]
[1766945831627,7.2879,123.58,123.55,0.0533923]
[1766945831920,7.2879,123.58,123.54,45.9003923]
[1766945832123,7.2879,123.58,123.54,32.87816519]
[1766945833118,95.65565415,123.59,123.55,0.00151739]
[1766945833318,7.2886,123.57,123.55,0.00151739]
[1766945833919,7.34325415,123.59,123.55,0.00151739]
[1766945834114,95.6,123.58,123.55,0.00151739]
[1766945834917,7.34315415,123.59,123.55,0.00151739]
[1766945835122,95.67565415,123.59,123.55,0.00151739]
[1766945836320,0.05565415,123.59,123.55,0.00151739]
[1766945837832,7.34295415,123.59,123.55,0.00151739]
[1766945838034,0.05565415,123.59,123.55,0.00151739]
[1766945838234,7.34295415,123.59,123.55,0.00151739]
[1766945839733,0.05565415,123.59,123.55,0.00151739]
[1766945841948,0.05565415,123.59,123.54,2.83201739]
[1766945842140,0.05565415,123.59,123.51,3.28]
[1766945842343,215.67906894,123.6,123.54,16.0]
[1766945842544,215.67906894,123.6,123.51,3.28]
[1766945842943,0.05907134,123.57,123.54,0.06134573]
[1766945843146,95.69907134,123.57,123.54,0.06134573]
[1766945843643,95.69907134,123.57,123.54,0.00134573]
[1766945846742,0.05907134,123.57,123.54,0.00134573]
[1766945849955,113.3214,123.63,123.54,3.28134573]
[1766945850249,208.9614,123.63,123.54,3.28]
[1766945850945,0.05626042,123.6,123.57,0.05367751]
[1766945851151,113.2838,123.67,123.55,3.28]
[1766945851152,113.2767,123.68,123.56,3.28]
[1766945851458,95.66,123.67,123.56,3.28]
[1766945851646,95.66,123.66,123.59,3.28]
[1766945851847,7.2829,123.67,123.59,3.28]
[1766945852043,0.05920733,123.64,123.62,0.05893863]
[1766945852251,7.2817,123.69,123.62,3.33893863]
[1766945852854,102.9205,123.71,123.63,3.28]
[1766945853253,0.05652989,123.68,123.66,0.06090667]
[1766945853447,102.9192,123.73,123.64,3.28]
[1766945853839,7.2792,123.73,123.65,3.28]
[1766945854553,0.0605516,123.7,123.68,0.05811725]
[1766945858654,4.12183286,123.74,123.68,0.05811725]
[1766945858855,99.74183286,123.74,123.68,0.05811725]
[1766945859753,0.05844987,123.72,123.68,0.05811725]
[1766945860553,0.05844987,123.72,123.63,98.92]
[1766945860748,113.2325,123.73,123.64,3.28]
[1766945861342,7.2803,123.71,123.64,3.28]
[1766945861552,0.05911843,123.69,123.66,0.05241578]
[1766945862656,0.05911843,123.69,123.66,0.00241578]
[1766945863061,7.34061843,123.69,123.66,0.00241578]
[1766945864653,4.12183286,123.67,123.59,7.2868]
[1766945864858,95.58,123.7,123.6,3.28]
[1766945865451,4.12183286,123.69,123.6,3.28]
[1766945865655,4.12183286,123.69,123.63,0.05856139]
[1766945865656,0.05644809,123.66,123.63,0.05856139]
[1766945879971,1.64976746,123.65,123.59,6.06]
[1766945880360,1.64976746,123.66,123.6,6.06]
[1766945880562,8.93296746,123.66,123.6,6.06]
[1766945880771,7.2832,123.66,123.6,6.06]
[1766945880963,0.0524906,123.64,123.62,0.05526274]
[1766945883275,0.0024906,123.64,123.62,0.05526274]
[1766945884362,0.0024906,123.64,123.62,6.11526274]
[1766945886470,0.0024906,123.64,123.62,7.7650302]
[1766945887272,0.0024906,123.64,123.62,6.11526274]
[1766945895180,0.0024906,123.64,123.62,13.60372589]
[1766945905279,0.0024906,123.64,123.63,7.48846315]
[1766945912209,1.65225806,123.64,123.61,2.589e-05]
[1766945912507,0.0024906,123.64,123.61,2.589e-05]
[1766945912894,0.0024906,123.64,123.59,104.19]
[1766945913303,0.0024906,123.64,123.6,0.05628003]
[1766945913699,0.0024906,123.64,123.6,10.31604749]
[1766945914004,0.0024906,123.64,123.61,8.61]
[1766945916411,0.0024906,123.64,123.62,10.25976746]
[1766945916599,7.2811,123.7,123.63,8.61]
[1766945916798,7.2811,123.7,123.63,104.19]
[1766945917705,0.05468763,123.68,123.65,0.05584505]
[1766945924028,0.05468763,123.68,123.63,104.19]
[1766945925026,0.05468763,123.68,123.64,0.05772945]
[1766945928632,7.2825,123.67,123.64,0.05772945]
[1766945932332,0.05468763,123.68,123.64,10.90772945]
[1766945932530,0.05468763,123.68,123.64,0.05772945]
[1766945938033,0.05468763,123.68,123.64,10.90772945]
[1766945939734,0.05468763,123.68,123.64,13.48494675]
[1766945940936,113.2249,123.74,123.65,10.85]
[1766945941335,6.18278716,123.73,123.65,10.85]
[1766945942037,0.05688841,123.7,123.68,0.05786587]
[1766945957942,0.05688841,123.7,123.65,10.85]
[1766945959058,0.05688841,123.7,123.66,0.05922566]
[1766945959555,7.2814,123.69,123.66,0.05922566]
[1766945964262,0.05688841,123.7,123.66,0.05922566]
[1766945965462,7.33768841,123.7,123.66,0.05922566]
[1766945965662,0.05688841,123.7,123.66,11.92922566]
[1766945967158,102.8405,123.71,123.66,11.92922566]
[1766945967360,12.49,123.78,123.69,2.5772173]
[1766945967862,12.49,123.77,123.68,2.5772173]
[1766945968062,19.7673,123.76,123.67,105.4193173]
[1766945968249,0.0535546,123.73,123.7,0.06090464]
[1766945978461,0.0535546,123.73,123.7,1.70825245]
[1766945978662,0.0535546,123.73,123.71,1.64734781]
[1766945979173,12.49,123.77,123.71,1.64734781]
[1766945980173,0.05651108,123.75,123.73,0.05309831]
[1766945983075,12.54651108,123.75,123.69,7.55311172]
[1766945983263,12.54651108,123.75,123.69,103.09311172]
[1766945983664,21.47185889,123.75,123.69,7.55311172]
[1766945983862,14.19385889,123.75,123.68,95.54]
[1766945984071,14.13734781,123.74,123.7,0.05322985]
[1766945984372,12.49,123.74,123.7,0.05322985]
[1766945989679,0.05651108,123.75,123.7,0.05322985]
[1766945989873,15.94651108,123.75,123.7,0.05322985]
[1766945990783,17.59385889,123.75,123.7,0.05322985]
[1766945992180,15.94651108,123.75,123.7,0.05322985]
[1766945992585,17.59385889,123.75,123.7,0.05322985]
[1766945994876,1.64734781,123.74,123.7,0.00322985]
[1766945995082,15.94,123.73,123.7,0.00322985]
[1766945996682,0.05651108,123.75,123.66,7.55311172]
[1766945996683,15.94,123.71,123.66,7.55311172]
[1766945996887,15.94,123.71,123.66,95.52]
[1766945997380,17.58734781,123.71,123.66,95.52]
[1766945997678,15.9934639,123.7,123.67,0.05740955]
[1766945998281,17.64081171,123.7,123.67,0.05740955]
[1766945998875,15.9934639,123.7,123.67,0.05740955]
[1766945999481,15.9934639,123.7,123.65,95.52]
[1766945999675,1.64734781,123.69,123.65,95.52]
[1766945999984,17.58734781,123.69,123.65,95.52]
[1766946000490,17.58734781,123.69,123.66,0.05980931]
[1766946000783,17.58734781,123.68,123.63,95.54]
[1766946001681,17.64051601,123.67,123.61,10.2779527]
[1766946001986,17.64051601,123.67,123.57,7.55311172]
[1766946001987,15.94,123.63,123.57,7.55311172]
[1766946002185,15.94,123.63,123.57,104.74045953]
[1766946002381,15.94,123.63,123.57,95.54]
[1766946002582,15.94,123.63,123.58,1.64734781]
[1766946002774,0.05519546,123.62,123.59,0.05275727]
[1766946004280,0.05519546,123.62,123.59,1.70010508]
[1766946004681,0.05519546,123.62,123.59,0.05275727]
[1766946004881,0.05519546,123.62,123.59,1.70010508]
[1766946005992,15.94,123.65,123.59,0.05275727]
[1766946006195,15.94,123.65,123.61,1.64734781]
[1766946006795,15.94,123.65,123.6,1.64734781]
[1766946007098,0.05149579,123.64,123.61,0.05362117]
[1766946012700,15.94,123.69,123.63,1.64734781]
[1766946012893,15.94,123.69,123.65,1.64734781]
[1766946013093,15.94,123.69,123.64,1.64734781]
[1766946013789,0.05191441,123.68,123.65,0.06041235]
[1766946017200,0.05191441,123.68,123.65,1.70776016]
[1766946017496,114.88544781,123.72,123.67,1.64734781]
[1766946017497,18.0,123.71,123.67,1.64734781]
[1766946018490,0.05509122,123.7,123.68,0.05369393]
[1766946022409,18.05509122,123.7,123.65,2.50734781]
[1766946022608,18.05509122,123.7,123.65,0.86]
[1766946023407,18.05509122,123.7,123.66,0.05381788]
[1766946024908,25.33589122,123.7,123.66,0.05381788]
[1766946027311,18.05509122,123.7,123.66,0.05381788]
[1766946030811,18.05509122,123.7,123.66,0.00381788]
[1766946031014,19.70243903,123.7,123.63,1.64734781]
[1766946031313,19.64734781,123.7,123.63,1.64734781]
[1766946031912,18.05184262,123.68,123.65,0.06063141]
[1766946034409,18.05184262,123.68,123.65,0.00063141]
[1766946047309,0.05184262,123.68,123.65,0.00063141]
[1766946051419,23.01184262,123.68,123.65,0.00063141]
[1766946052620,0.00184262,123.68,123.65,7.14063141]
[1766946052823,0.00184262,123.68,123.65,0.00063141]
[1766946053419,0.00184262,123.68,123.65,7.5374653]
[1766946059029,22.96,123.78,123.71,2.57741326]
[1766946059328,22.96,123.77,123.67,7.56928494]
[1766946059520,22.96,123.75,123.67,7.56928494]
[1766946059826,22.96,123.75,123.65,2.57741326]
[1766946059827,23.01762406,123.72,123.65,7.56928494]
[1766946060027,22.96,123.7,123.63,7.56928494]
[1766946060237,25.53741326,123.69,123.62,103.14928494]
[1766946060529,22.96,123.69,123.63,10.1466982]
[1766946060725,22.96,123.69,123.63,7.56928494]
[1766946060932,22.96,123.75,123.66,2.57741326]
[1766946061119,22.96,123.75,123.68,10.1466982]
[1766946061833,22.96,123.75,123.67,103.14928494]
[1766946062021,0.05452316,123.72,123.7,0.05898008]
[1766946062222,22.96,123.75,123.7,0.05898008]
[1766946063132,0.06149184,123.74,123.7,0.05898008]
[1766946064220,0.06149184,123.74,123.7,2.63639334]
[1766946064434,22.96,123.77,123.7,2.63639334]
[1766946064630,22.96,123.77,123.7,2.57741326]
[1766946064832,22.96,123.77,123.69,10.1466982]
[1766946065127,22.96,123.77,123.69,7.56928494]
[1766946065335,22.96,123.75,123.67,7.56928494]
[1766946065627,22.96,123.77,123.7,2.63197796]
[1766946066730,0.0560385,123.75,123.7,0.0545647]
[1766946069727,0.0560385,123.75,123.71,2.57741326]
[1766946069927,22.96,123.79,123.73,2.57741326]
[1766946070838,0.05827237,123.77,123.75,0.06188698]
[1766946074232,22.96,123.79,123.75,0.06188698]
[1766946075124,0.05286461,123.78,123.75,0.06188698]
[1766946076141,23.00286461,123.78,123.75,0.06188698]
[1766946076441,23.00286461,123.78,123.72,95.54]
[1766946076841,23.00286461,123.78,123.72,105.39681326]
[1766946077234,23.00286461,123.78,123.74,0.06059146]
[1766946079548,23.00286461,123.78,123.74,7.33879146]
[1766946080240,7.2737,123.82,123.74,9.91620472]
[1766946080542,7.2728,123.84,123.75,7.2775]
[1766946080936,211.22401326,123.85,123.75,7.2775]
[1766946081335,0.05564496,123.81,123.79,0.06066544]
[1766946081537,0.05564496,123.81,123.79,0.00066544]
[1766946082333,23.00564496,123.81,123.79,0.00066544]
[1766946087450,23.00564496,123.81,123.74,9.85551326]
[1766946088151,22.95,123.78,123.7,2.57741326]
[1766946088345,22.95,123.78,123.73,0.05127433]
[1766946088346,0.0538944,123.75,123.73,0.05127433]
[1766946093148,22.95,123.79,123.73,0.05127433]
[1766946093355,22.95,123.82,123.74,2.57741326]
[1766946094350,0.05837734,123.79,123.77,0.0580552]
[1766946097953,0.05837734,123.79,123.73,2.57741326]
[1766946098257,0.05837734,123.79,123.73,10.1466982]